bitfinex/quotes_ETHUSD_20240721
["timestamp","ask_amount","ask_price","bid_price","bid_amount"]
[1721545367827,3.0,3488.4,3487.9,2.86703]
[1721545367976,3.439654,3488.7,3488.0,0.55]
[1721545367977,3.0,3488.6,3488.0,0.55]
[1721545368176,0.6439654,3488.5,3488.0,0.55]
[1721545368828,2.86649,3488.6,3488.0,0.55]
[1721545368988,2.86641,3488.7,3488.0,0.55]
[1721545369327,2.86634,3488.8,3487.9,3.41703]
[1721545369516,2.86634,3488.8,3488.0,2.86696]
[1721545369726,2.8664,3488.7,3488.1,0.55]
[1721545369873,0.28664,3488.6,3488.1,0.55]
[1721545370075,3.0,3488.9,3488.1,0.55]
[1721545370279,2.86615,3489.0,3488.2,2.86678]
[1721545370518,2.86629,3488.9,3488.3,0.55]
[1721545370725,2.86658,3488.5,3488.3,0.55]
[1721545371310,3.0,3489.1,3488.3,0.55]
[1721545371508,2.86662,3488.5,3488.3,0.55]
[1721545371693,2.86623,3488.9,3488.3,0.55]
[1721545372052,2.86623,3488.9,3488.1,0.55]
[1721545372327,0.586595,3489.0,3488.1,0.55]
[1721545372328,2.86633,3488.8,3488.1,0.55]
[1721545372980,2.86663,3488.5,3488.1,0.55]
[1721545373228,0.286663,3488.4,3487.8,0.55]
[1721545373536,0.286663,3488.4,3487.6,2.3555]
[1721545373826,2.86637,3488.8,3488.0,2.8669]
[1721545374321,3.452745,3489.0,3487.6,2.3055]
[1721545374322,3.452745,3489.0,3488.1,2.86682]
[1721545374526,3.452745,3489.0,3488.2,2.86679]
[1721545374683,2.86624,3488.9,3488.2,3.41679]
[1721545374880,3.4982095,3488.8,3488.2,0.55]
[1721545375086,3.4982095,3488.8,3488.1,0.55]
[1721545376041,2.86657,3488.5,3488.1,0.55]
[1721545376603,2.8664,3488.7,3487.9,3.41705]
[1721545376926,2.8664,3488.7,3488.0,2.86695]
[1721545377133,2.86623,3488.9,3488.2,2.86678]
[1721545377330,3.439457,3488.9,3488.3,0.55]
[1721545378400,2.86631,3488.8,3488.3,0.55]
[1721545378604,2.86648,3488.6,3488.3,0.55]
[1721545379916,2.86659,3488.5,3488.3,0.55]
[1721545380239,2.86659,3488.5,3487.8,10.310881]
[1721545380240,0.573227,3488.9,3487.8,7.443811]
[1721545380406,2.86692,3488.1,3487.8,7.443811]
[1721545380606,2.867,3488.0,3487.8,7.443811]
[1721545380808,2.86692,3488.1,3487.8,7.443811]
[1721545381007,2.86674,3488.3,3487.8,7.443811]
[1721545381621,2.86683,3488.2,3487.9,0.55]
[1721545381801,2.86657,3488.5,3487.9,0.55]
[1721545382001,2.86639,3488.8,3487.9,3.41705]
[1721545382325,3.0,3488.9,3488.2,2.86679]
[1721545382326,2.86625,3488.9,3488.2,2.86679]
[1721545382528,2.86625,3488.9,3488.3,0.55]
[1721545383725,2.86612,3489.1,3488.3,3.41671]
[1721545383927,5.86615,3489.0,3488.3,3.41671]
[1721545385365,2.86589,3489.4,3488.6,2.86647]
[1721545385569,3.0,3489.3,3488.7,0.55]
[1721545386015,3.0,3489.3,3488.6,0.55]
[1721545386217,3.0,3489.3,3488.8,2.8663]
[1721545386412,2.8655,3489.8,3488.6,0.55]
[1721545386413,2.86543,3489.9,3489.1,2.86599]
[1721545386618,2.86543,3489.9,3489.2,0.55]
[1721545386977,2.86543,3489.9,3489.2,3.41598]
[1721545387167,2.86517,3490.2,3489.3,2.86589]
[1721545387168,2.86529,3490.1,3489.3,2.86589]
[1721545387469,2.86529,3490.1,3489.4,3.4158]
[1721545387761,2.86529,3490.1,3489.2,0.55]
[1721545387762,0.286529,3490.0,3489.5,0.55]
[1721545388055,2.86547,3489.9,3489.2,3.41595]
[1721545389460,2.86525,3490.1,3489.2,0.55]
[1721545389763,5.86534,3490.0,3489.2,3.41592]
[1721545389947,2.86534,3490.0,3489.3,2.86587]
[1721545390165,2.86534,3490.0,3489.4,0.55]
[1721545390328,3.738382,3490.0,3489.4,0.55]
[1721545390522,3.738382,3490.0,3489.2,0.55]
[1721545391048,2.86492,3490.5,3489.2,0.55]
[1721545391353,2.86492,3490.5,3489.0,0.55]
[1721545391559,5.86506,3490.4,3489.6,2.86559]
[1721545391773,5.86506,3490.4,3489.0,0.55]
[1721545391774,5.86506,3490.4,3489.7,0.55]
[1721545391989,0.586506,3490.3,3489.7,0.55]
[1721545392188,0.586506,3490.3,3489.9,2.8654]
[1721545392394,0.586506,3490.3,3490.0,0.55]
[1721545392751,2.86486,3490.6,3490.0,0.55]
[1721545392953,2.86476,3490.7,3490.0,3.41532]
[1721545393269,2.86451,3491.0,3490.0,3.41532]
[1721545393270,2.86463,3490.9,3490.2,2.86516]
[1721545393471,2.86463,3490.9,3490.0,0.55]
[1721545393472,2.86467,3490.8,3490.3,0.55]
[1721545393672,2.86467,3490.8,3490.0,3.41528]
[1721545393673,1.38898068,3491.1,3490.4,2.86493]
[1721545393871,1.38898068,3491.1,3490.0,0.55]
[1721545393872,0.42534007,3491.1,3490.5,0.55]
[1721545394198,2.3362,3492.1,3490.3,0.55]
[1721545394487,2.86433,3491.3,3490.4,2.86499]
[1721545394671,2.86436,3491.2,3490.5,0.55]
[1721545396762,2.86436,3491.2,3490.5,3.4149]
[1721545396986,2.86443,3491.1,3490.5,3.4149]
[1721545397312,2.86443,3491.1,3489.8,2.452]
[1721545397313,0.286443,3491.0,3489.8,2.452]
[1721545397471,2.86454,3491.0,3489.8,2.452]
[1721545397668,2.86459,3490.9,3490.2,2.86515]
[1721545398575,2.86459,3490.9,3490.3,0.55]
[1721545399418,2.86428,3491.3,3490.3,2.86507]
[1721545399622,0.286428,3491.2,3490.4,0.55]
[1721545400117,0.0777815,3492.2,3491.0,2.86444]
[1721545400118,2.86387,3491.8,3491.0,2.86444]
[1721545400712,2.86408,3491.6,3490.8,5.25664]
[1721545400914,2.86394,3491.7,3490.9,0.55]
[1721545402302,2.86411,3491.5,3490.9,0.55]
[1721545403251,2.86432,3491.3,3490.9,0.55]
[1721545403436,2.86442,3491.1,3490.7,0.55]
[1721545403740,2.86442,3491.1,3490.3,2.392]
[1721545403741,2.3362,3492.1,3490.3,2.392]
[1721545403742,2.86407,3491.6,3490.3,2.392]
[1721545403926,2.86464,3490.9,3490.3,2.392]
[1721545404505,3.0,3491.5,3489.9,10.309201]
[1721545404708,2.86481,3490.7,3489.9,10.309201]
[1721545405149,2.86481,3490.7,3490.0,2.86531]
[1721545405914,0.3,3491.4,3489.9,7.443811]
[1721545406114,0.3,3491.4,3490.0,0.55]
[1721545406623,0.3,3491.4,3490.8,2.86465]
[1721545406809,0.3,3491.4,3490.9,3.41452]
[1721545407018,0.3,3491.4,3491.0,2.86449]
[1721545407424,2.86388,3491.8,3491.1,0.55]
[1721545407821,2.86388,3491.8,3491.1,3.41436]
[1721545408076,2.86388,3491.8,3491.2,2.86433]
[1721545408388,0.0777815,3492.2,3491.7,1.931]
[1721545408521,0.0777815,3492.2,3492.1,2.8636]
[1721545408720,0.0777815,3492.2,3491.8,0.55]
[1721545408721,0.0777815,3492.2,3491.8,3.41384]
[1721545409220,0.0777815,3492.2,3491.9,2.86375]
[1721545409537,0.0777815,3492.2,3492.0,0.55]
[1721545409943,0.0777815,3492.2,3492.1,2.8636]
[1721545410143,0.0777815,3492.2,3491.7,2.86393]
[1721545410486,0.0777815,3492.2,3491.3,4.2302]
[1721545410487,0.0777815,3492.2,3491.6,2.86401]
[1721545410770,0.0777815,3492.2,3491.7,0.55]
[1721545411132,0.0777815,3492.2,3491.7,3.41391]
[1721545411818,0.0777815,3492.2,3491.9,2.86374]
[1721545411931,0.0777815,3492.2,3492.0,2.86361]
[1721545412143,0.0777815,3492.2,3492.1,0.55]
[1721545412340,0.0777815,3492.2,3492.1,3.4136]
[1721545413137,0.0777815,3492.2,3492.1,6.904944]
[1721545413344,2.86252,3493.5,3492.4,2.86335]
[1721545413559,2.86252,3493.5,3492.1,3.552444]
[1721545413560,2.86252,3493.5,3492.7,2.86305]
[1721545413753,2.86232,3493.7,3492.8,3.41302]
[1721545413953,2.86239,3493.6,3492.8,3.41302]
[1721545414157,0.57246,3493.5,3492.8,3.41302]
[1721545414789,3.43493,3493.5,3492.8,3.41302]
[1721545414976,2.86255,3493.4,3492.8,0.55]
[1721545415182,0.57246,3493.5,3492.8,0.55]
[1721545415349,0.343484,3493.4,3492.8,0.55]
[1721545415544,0.343484,3493.4,3492.8,3.41301]
[1721545415805,0.343484,3493.4,3492.8,0.55]
[1721545415993,2.86255,3493.4,3492.7,0.55]
[1721545416366,2.86263,3493.3,3492.7,0.55]
[1721545416553,2.8626,3493.4,3492.6,3.41312]
[1721545416991,3.0,3494.0,3492.6,3.41312]
[1721545416992,2.86264,3493.3,3492.6,3.41312]
[1721545417433,2.86264,3493.3,3492.6,0.55]
[1721545417595,2.86264,3493.3,3492.3,2.86343]
[1721545417596,3.43515,3493.3,3492.4,3.41332]
[1721545417784,3.43515,3493.3,3492.5,2.86327]
[1721545417982,0.57251,3493.3,3492.6,0.55]
[1721545418181,2.86266,3493.3,3492.6,3.41319]
[1721545418495,2.86275,3493.2,3492.6,0.55]
[1721545418695,2.86263,3493.3,3492.4,0.55]
[1721545418893,3.0,3494.0,3492.2,10.307301]
[1721545418894,2.86295,3492.9,3492.2,7.443811]
[1721545419309,2.86279,3493.1,3492.2,7.443811]
[1721545419620,0.286279,3493.0,3492.2,7.443811]
[1721545419914,2.86304,3492.8,3492.2,7.443811]
[1721545420218,2.86304,3492.8,3492.1,2.86358]
[1721545420379,2.86279,3493.1,3492.3,2.86342]
[1721545420583,2.86262,3493.3,3492.4,3.41333]
[1721545420779,2.86262,3493.3,3492.5,2.86323]
[1721545420978,2.86262,3493.3,3492.6,0.55]
[1721545421209,2.86246,3493.5,3492.6,0.55]
[1721545421210,2.8627,3493.2,3492.6,0.55]
[1721545421939,2.86255,3493.4,3492.6,3.41319]
[1721545422702,2.86255,3493.4,3492.7,2.8631]
[1721545422904,2.86238,3493.6,3492.8,0.55]
[1721545423101,3.434839,3493.6,3492.8,0.55]
[1721545423434,3.434839,3493.6,3492.9,2.86293]
[1721545423750,0.572459,3493.6,3493.0,3.41284]
[1721545423898,0.572459,3493.6,3493.0,0.55]
[1721545424100,2.86232,3493.7,3492.9,3.41293]
[1721545424698,2.86213,3493.9,3492.9,3.41293]
[1721545424929,2.86196,3494.1,3493.1,2.86277]
[1721545424930,2.86221,3493.8,3493.1,2.86277]
[1721545425113,2.86221,3493.8,3493.2,0.55]
[1721545425340,2.86205,3494.0,3493.2,3.41269]
[1721545425507,2.86214,3493.9,3493.2,3.41269]
[1721545426041,2.86214,3493.9,3493.3,2.86261]
[1721545426339,2.86214,3493.9,3493.4,0.55]
[1721545427041,2.86197,3494.1,3493.4,2.86247]
[1721545427204,2.86197,3494.1,3493.5,0.55]
[1721545427539,2.86197,3494.1,3493.4,2.86247]
[1721545428035,2.8618,3494.3,3493.4,2.86247]
[1721545428243,2.86189,3494.2,3493.5,0.55]
[1721545428671,2.86189,3494.2,3493.4,0.55]
[1721545428830,2.86189,3494.2,3493.4,1.8731121]
[1721545429467,2.86189,3494.2,3493.5,2.86244]
[1721545429630,2.86189,3494.2,3493.6,0.55]
[1721545430540,2.86173,3494.4,3493.6,0.55]
[1721545430878,2.86173,3494.4,3493.4,1.3231121]
[1721545430879,2.86173,3494.4,3493.7,2.86223]
[1721545431027,2.86173,3494.4,3493.8,0.55]
[1721545431668,2.86198,3494.1,3493.8,0.55]
[1721545431874,3.0,3495.1,3493.3,2.3747]
[1721545432099,3.0,3495.1,3493.4,0.55]
[1721545432100,2.86214,3493.9,3493.4,0.55]
[1721545432233,2.86214,3493.9,3493.1,7.443811]
[1721545432234,2.862,3494.1,3493.3,3.41259]
[1721545432638,2.86196,3494.1,3493.4,2.86252]
[1721545432958,2.86196,3494.1,3493.5,0.55]
[1721545433141,2.86184,3494.3,3493.5,0.55]
[1721545433470,2.86184,3494.3,3493.6,2.86237]
[1721545433634,2.86184,3494.3,3493.7,0.55]
[1721545434139,2.86189,3494.2,3493.7,0.55]
[1721545434349,2.86189,3494.2,3493.5,3.41243]
[1721545434750,2.86176,3494.4,3493.6,2.86236]
[1721545434949,2.86176,3494.4,3493.7,0.55]
[1721545435471,2.86176,3494.4,3493.7,3.41228]
[1721545435907,2.86181,3494.3,3493.7,0.55]
[1721545436199,2.8616,3494.6,3493.9,2.86212]
[1721545436352,2.8616,3494.6,3494.0,0.55]
[1721545437111,2.86139,3494.8,3494.1,2.86196]
[1721545437291,2.86139,3494.8,3494.2,0.55]
[1721545439063,2.86131,3494.9,3494.2,0.55]
[1721545439256,2.86157,3494.6,3494.0,0.55]
[1721545439455,2.86157,3494.6,3493.8,0.55]
[1721545439710,0.22571,3495.2,3493.8,0.55]
[1721545439711,2.86181,3494.3,3493.8,0.55]
[1721545440714,2.86194,3494.2,3493.8,0.55]
[1721545440911,6.08685,3495.2,3493.2,2.3212]
[1721545440912,2.2571,3495.0,3493.2,2.3212]
[1721545441075,2.86237,3493.7,3493.1,7.443811]
[1721545441256,2.86237,3493.7,3492.9,2.86294]
[1721545441458,2.86237,3493.7,3493.0,2.86285]
[1721545441761,2.86223,3493.8,3493.1,2.86278]
[1721545441959,2.86198,3494.1,3493.1,2.86278]
[1721545442323,2.86198,3494.1,3493.3,2.8626]
[1721545442598,2.86205,3494.0,3493.4,0.55]
[1721545443000,2.86173,3494.4,3493.6,2.86237]
[1721545443217,2.86156,3494.6,3493.7,0.55]
[1721545443218,2.8618,3494.3,3493.7,0.55]
[1721545443421,2.86156,3494.6,3493.7,0.55]
[1721545443422,2.86156,3494.6,3493.7,5.73348]
[1721545444408,2.8618,3494.3,3493.7,5.73348]
[1721545444563,2.86167,3494.5,3493.7,5.73348]
[1721545444766,2.86167,3494.5,3493.8,2.86217]
[1721545444997,2.86151,3494.7,3493.9,3.41211]
[1721545445307,2.8614,3494.8,3493.9,2.86211]
[1721545445308,2.86156,3494.6,3493.9,2.86211]
[1721545445472,2.86156,3494.6,3494.0,0.55]
[1721545445679,2.86142,3494.8,3494.0,3.41202]
[1721545446381,2.86149,3494.7,3494.0,3.41202]
[1721545447030,0.74342483,3495.7,3494.1,2.3212]
[1721545447031,3.60409483,3495.7,3494.1,2.3212]
[1721545447239,3.0131145,3495.7,3494.6,2.86151]
[1721545447409,2.86091,3495.4,3494.6,2.86151]
[1721545447609,2.86091,3495.4,3494.7,0.55]
[1721545447814,2.86091,3495.4,3494.7,3.41143]
[1721545447815,3.44831245,3495.4,3494.7,3.41143]
[1721545448201,0.58740245,3495.4,3494.3,2.86174]
[1721545448539,2.8612,3495.1,3494.4,0.55]
[1721545448713,2.86127,3495.0,3494.4,0.55]
[1721545449945,3.0131445,3495.7,3494.1,2.3212]
[1721545449946,2.86141,3494.8,3494.1,2.3212]
[1721545450143,2.86141,3494.8,3494.2,0.55]
[1721545450309,2.86165,3494.5,3493.9,0.55]
[1721545450509,2.86165,3494.5,3493.9,2.1639511]
[1721545450943,2.86173,3494.4,3493.9,0.55]
[1721545451112,2.86173,3494.4,3493.8,0.55]
[1721545451318,2.8618,3494.3,3493.7,9.865011]
[1721545451516,2.8619,3494.2,3493.7,2.4212]
[1721545452817,2.8619,3494.2,3493.8,0.55]
[1721545453238,2.86172,3494.4,3493.8,0.55]
[1721545453441,2.86172,3494.4,3493.8,0.84712]
[1721545453645,2.86157,3494.6,3493.8,3.70933]
[1721545453851,2.86165,3494.5,3493.8,3.70933]
[1721545454368,2.86153,3494.7,3493.9,2.86206]
[1721545454580,2.86153,3494.7,3494.0,3.41204]
[1721545455153,2.86157,3494.6,3494.0,0.55]
[1721545455653,2.86173,3494.4,3493.9,0.55]
[1721545456819,2.8618,3494.3,3493.9,0.55]
[1721545457022,2.8618,3494.3,3493.8,0.55]
[1721545458356,2.8618,3494.3,3493.7,0.1]
[1721545458357,2.86194,3494.2,3493.7,0.1]
[1721545458817,2.8621,3494.0,3493.7,0.1]
[1721545459805,2.86194,3494.2,3493.7,0.1]
[1721545459923,2.86197,3494.1,3493.7,0.1]
[1721545462516,2.86189,3494.2,3493.7,0.1]
[1721545462962,2.86197,3494.1,3493.7,0.1]
[1721545463124,0.59098033,3494.4,3493.9,2.86209]
[1721545463321,2.86164,3494.5,3494.0,0.55]
[1721545463931,0.59098033,3494.6,3494.0,0.55]
[1721545464253,3.45256033,3494.6,3494.0,0.55]
[1721545464449,0.59098033,3494.6,3494.0,0.55]
[1721545464669,2.86173,3494.4,3493.8,0.55]
[1721545465139,2.86173,3494.4,3493.8,3.4122]
[1721545465954,2.86173,3494.4,3493.8,0.55]
[1721545465955,6.31449033,3494.4,3493.8,0.55]
[1721545466158,0.59098033,3494.4,3493.8,1.187478]
[1721545466453,0.59098033,3494.5,3493.8,0.55]
[1721545466656,0.59098033,3494.5,3494.1,2.86191]
[1721545466858,0.59098033,3494.6,3494.2,0.55]
[1721545467018,0.59098033,3494.6,3494.2,3.41187]
[1721545467220,0.59098033,3494.6,3494.3,2.86177]
[1721545467432,0.59098033,3494.7,3494.4,3.41172]
[1721545467757,0.59098033,3494.8,3494.4,2.86172]
[1721545469741,0.59098033,3494.8,3494.7,2.86147]
[1721545469944,0.15384767,3495.0,3494.7,0.55]
[1721545469945,0.59098033,3495.0,3494.7,0.55]
[1721545470143,0.8864705,3495.1,3494.6,0.55]
[1721545470144,0.59098033,3494.9,3494.6,0.55]
[1721545470677,0.59098033,3494.8,3494.6,0.55]
[1721545471046,0.59098033,3494.9,3494.6,0.55]
[1721545471273,0.8864705,3494.8,3493.9,7.443811]
[1721545471452,0.8864705,3494.8,3493.7,0.1]
[1721545471453,2.86221,3493.8,3493.7,0.1]
[1721545471646,4.94338934,3493.8,3493.7,0.1]
[1721545471854,13.30189934,3493.8,3493.7,0.1]
[1721545472062,13.75666712,3493.8,3493.7,0.1]
[1721545472399,15.69189452,3493.8,3493.7,0.1]
[1721545472688,18.55410452,3493.8,3493.7,0.1]
[1721545473480,20.35299547,3493.8,3493.7,0.1]
[1721545473680,18.55410452,3493.8,3493.7,0.1]
[1721545473952,20.35290334,3493.8,3493.7,0.1]
[1721545475276,18.55410452,3493.8,3493.7,0.1]
[1721545475654,15.69189452,3493.8,3493.7,0.1]
[1721545476197,10.81382674,3493.8,3493.7,0.1]
[1721545476584,12.3113117,3493.8,3493.7,0.1]
[1721545476813,10.81382674,3493.8,3493.7,0.1]
[1721545476965,12.31138959,3493.8,3493.7,0.1]
[1721545477869,10.81382674,3493.8,3493.7,0.1]
[1721545478173,12.31107756,3493.8,3493.7,0.1]
[1721545479309,1.35150667,3493.8,3493.7,0.1]
[1721545479453,0.15417934,3493.8,3493.7,0.1]
[1721545479784,1.19732733,3493.9,3493.7,0.1]
[1721545479785,0.59861984,3493.9,3493.7,0.1]
[1721545480876,0.59861984,3493.9,3493.8,0.1]
[1721545481110,3.46074984,3493.9,3493.8,0.1]
[1721545481873,2.86213,3493.9,3493.8,0.1]
[1721545482073,7.40413648,3493.9,3493.8,0.1]
[1721545482270,4.99534707,3493.9,3493.8,0.1]
[1721545482488,3.01607303,3493.9,3493.8,0.1]
[1721545482688,2.86213,3493.9,3493.8,0.1]
[1721545482886,3.46064314,3493.9,3493.8,0.1]
[1721545486333,5.87823916,3493.9,3493.8,0.1]
[1721545486489,6.62209377,3493.9,3493.8,0.1]
[1721545486822,3.75996377,3493.9,3493.8,0.1]
[1721545487837,7.59672788,3493.9,3493.8,0.1]
[1721545487992,6.85281779,3493.9,3493.8,0.1]
[1721545488926,7.59648798,3493.9,3493.8,0.1]
[1721545490321,3.75972387,3493.9,3493.8,0.1]
[1721545490506,3.46041281,3493.9,3493.8,0.1]
[1721545490706,0.59828281,3494.0,3493.8,0.1]
[1721545490901,1.19732733,3494.4,3493.8,0.1]
[1721545490902,0.59828281,3493.9,3493.8,0.1]
[1721545491151,0.89759387,3494.1,3493.8,0.1]
[1721545491152,0.59828281,3494.1,3493.8,3.51214]
[1721545491448,0.59828281,3494.2,3493.9,0.87912]
[1721545491746,0.59828281,3494.2,3493.8,3.51214]
[1721545493222,0.59828281,3494.3,3493.9,2.86212]
[1721545493428,0.59828281,3494.4,3493.9,2.86212]
[1721545493761,0.59828281,3494.5,3494.0,0.64744]
[1721545494163,0.59828281,3494.4,3494.0,0.64744]
[1721545494763,0.59828281,3494.4,3494.1,2.86194]
[1721545495360,0.59828281,3494.5,3494.2,2.86188]
[1721545496124,0.59828281,3494.6,3494.3,0.55]
[1721545496363,0.89759387,3494.8,3494.3,2.86173]
[1721545496364,0.59828281,3494.8,3494.3,2.86173]
[1721545496565,0.59828281,3494.8,3494.4,2.8617]
[1721545496865,3.75882387,3495.0,3493.8,0.65]
[1721545496866,0.59828281,3495.0,3494.5,2.86161]
[1721545497331,0.59828281,3495.1,3494.5,3.147771]
[1721545499091,0.59828281,3495.2,3494.6,2.86155]
[1721545499447,0.59828281,3495.2,3494.5,0.286161]
[1721545499649,0.59828281,3495.2,3494.2,7.443811]
[1721545499650,0.59828281,3495.0,3494.2,7.443811]
[1721545499869,2.8618,3494.3,3494.2,7.443811]
[1721545500065,2.8619,3494.2,3493.8,0.1]
[1721545501163,2.86213,3493.9,3493.8,0.1]
[1721545501597,6.32254281,3493.9,3493.8,0.1]
[1721545501806,5.72426,3493.9,3493.8,0.1]
[1721545502101,1.49538912,3494.3,3493.8,0.1]
[1721545502102,0.59821102,3494.6,3493.8,0.1]
[1721545502254,0.59821102,3494.4,3493.8,0.1]
[1721545502451,2.86164,3494.5,3493.8,0.1]
[1721545502452,2.86164,3494.5,3493.9,0.553355]
[1721545502783,3.45985102,3494.5,3493.9,0.553355]
[1721545503157,0.59821102,3494.5,3493.9,3.415475]
[1721545503358,3.45977102,3494.6,3493.9,3.415475]
[1721545503874,0.59821102,3494.6,3493.9,0.553355]
[1721545504070,1.19732733,3494.9,3494.3,2.86173]
[1721545504071,0.59821102,3494.9,3494.3,2.86173]
[1721545504303,0.59821102,3495.0,3494.3,2.86173]
[1721545504520,3.45941102,3495.1,3494.3,2.86173]
[1721545505213,2.86123,3495.0,3494.3,2.86173]
[1721545506220,2.86123,3495.0,3494.4,2.86171]
[1721545506367,3.45932102,3495.2,3494.5,0.286171]
[1721545506710,2.86116,3495.1,3494.5,0.286171]
[1721545506874,0.59821102,3495.2,3494.5,0.286171]
[1721545507074,0.59821102,3495.3,3494.7,2.86147]
[1721545507275,3.75842387,3495.5,3494.7,2.86147]
[1721545507276,0.59821102,3495.4,3494.8,2.86133]
[1721545507677,3.45904102,3495.5,3494.8,2.86133]
[1721545509303,2.86108,3495.2,3494.5,3.147801]
[1721545509726,2.86133,3494.9,3493.8,5.43343]
[1721545510035,2.86143,3494.8,3493.9,5.72417]
[1721545510308,2.86143,3494.8,3493.9,2.86206]
[1721545510483,2.86143,3494.8,3494.0,0.839564]
[1721545511006,2.86148,3494.7,3494.0,3.701584]
[1721545511205,2.86133,3494.9,3494.1,2.86193]
[1721545511411,2.86133,3494.9,3494.0,0.839564]
[1721545511610,2.86133,3494.9,3494.2,2.86187]
[1721545511828,2.86142,3494.8,3494.0,3.701564]
[1721545511969,5.72301,3494.7,3494.1,0.9134984]
[1721545512170,2.86147,3494.7,3494.0,2.862]
[1721545512412,2.86156,3494.6,3493.8,5.43346]
[1721545512593,2.86156,3494.6,3493.9,3.41205]
[1721545512797,2.86156,3494.6,3494.0,2.86203]
[1721545513569,2.86144,3494.8,3494.1,2.86195]
[1721545514711,2.86144,3494.8,3494.2,0.341195]
[1721545514885,0.89759387,3495.3,3494.3,2.86179]
[1721545514886,2.86124,3495.0,3494.3,2.86179]
[1721545517138,0.59821102,3495.2,3494.6,2.86153]
[1721545517425,0.59821102,3495.3,3494.6,2.86153]
[1721545517627,3.45921102,3495.3,3494.6,2.86153]
[1721545518414,2.86108,3495.2,3494.4,2.86164]
[1721545518622,3.45920102,3495.3,3494.5,0.55]
[1721545518781,0.59821102,3495.1,3494.5,0.55]
[1721545519621,0.89759387,3495.2,3494.5,0.55]
[1721545519622,0.59821102,3495.0,3494.5,0.55]
[1721545519920,0.59821102,3495.0,3494.3,7.443811]
[1721545520127,3.45948102,3495.0,3494.3,10.305601]
[1721545520421,2.86127,3495.0,3494.4,4.1784561]
[1721545521341,0.59821102,3495.1,3494.6,2.86155]
[1721545521482,4.05815733,3495.5,3494.6,2.86155]
[1721545521483,0.59821102,3495.2,3494.6,2.86155]
[1721545521679,0.59821102,3495.3,3494.6,2.86155]
[1721545521920,3.45917102,3495.4,3494.7,2.86144]
[1721545522141,0.59821102,3495.4,3494.6,4.36715707]
[1721545522452,0.59821102,3495.4,3494.6,3.96040707]
[1721545522578,0.59821102,3495.5,3495.0,2.86115]
[1721545524521,0.59821102,3495.5,3495.1,2.86114]
[1721545525094,1.05003837,3495.7,3495.2,2.86106]
[1721545525095,0.59821102,3495.6,3495.2,2.86106]
[1721545525685,0.1524445,3495.7,3495.2,2.86106]
[1721545525686,0.75065552,3495.7,3495.2,3.433296]
[1721545526996,0.1524445,3495.7,3495.2,3.433296]
[1721545527202,0.75065552,3495.7,3495.2,3.433296]
[1721545527521,0.1524445,3495.7,3495.2,3.433296]
[1721545528688,0.1524445,3495.7,3494.6,3.90318171]
[1721545528689,2.3449,3494.3,3493.7,0.1]
[1721545528890,2.94264984,3494.3,3493.7,0.1]
[1721545529092,0.59774984,3494.2,3493.7,0.1]
[1721545529332,2.86197,3494.1,3493.7,0.1]
[1721545529531,0.59774984,3494.2,3493.7,0.1]
[1721545530160,0.59774984,3494.5,3493.8,2.96219]
[1721545530288,0.59774984,3494.5,3493.9,0.306219]
[1721545530630,3.45939984,3494.5,3493.9,0.306219]
[1721545530791,0.59774984,3494.5,3493.9,0.306219]
[1721545530996,0.89662476,3494.7,3493.9,0.306219]
[1721545530997,0.59774984,3494.6,3493.9,0.306219]
[1721545531212,3.45908984,3494.9,3494.0,0.55]
[1721545531393,3.45908984,3494.9,3494.1,0.6273219]
[1721545531590,3.45908984,3494.9,3494.2,0.55]
[1721545531933,0.59774984,3494.9,3494.2,3.41186]
[1721545532436,0.59774984,3495.0,3494.2,3.41186]
[1721545532887,0.59774984,3495.0,3494.3,2.86177]
[1721545533084,0.59774984,3495.0,3494.4,3.55180519]
[1721545533288,0.59774984,3495.0,3494.5,2.86162]
[1721545533593,0.89662476,3495.2,3494.5,2.86162]
[1721545533594,0.59774984,3495.1,3494.5,2.86162]
[1721545534100,3.45882984,3495.2,3494.5,2.86162]
[1721545534298,2.86108,3495.2,3494.6,0.64135252]
[1721545534619,0.59774984,3495.3,3494.7,3.46868369]
[1721545534996,0.59774984,3495.3,3494.8,2.86138]
[1721545535203,0.89662476,3495.5,3494.9,0.55]
[1721545535204,0.59774984,3495.4,3494.9,0.55]
[1721545535539,0.59774984,3495.4,3494.9,3.41128]
[1721545535691,0.59774984,3495.4,3495.0,0.856834]
[1721545536141,7.06932418,3495.7,3495.0,0.856834]
[1721545536142,0.59774984,3495.3,3495.0,0.856834]
[1721545536432,0.59774984,3495.4,3495.0,0.856834]
[1721545537096,0.59774984,3495.3,3495.0,0.856834]
[1721545537335,0.59774984,3495.3,3494.6,0.64135252]
[1721545537503,2.86124,3495.0,3494.6,0.64135252]
[1721545537726,0.59774984,3495.1,3494.6,0.64135252]
[1721545537937,0.59774984,3495.0,3494.6,0.64135252]
[1721545538672,2.86131,3494.9,3494.6,0.64135252]
[1721545538973,3.45905984,3494.9,3494.6,0.64135252]
[1721545539457,0.59774984,3494.9,3494.6,0.64135252]
[1721545540169,2.86124,3495.0,3494.6,0.64135252]
[1721545540170,0.59774984,3495.0,3494.6,0.64135252]
[1721545540375,0.59774984,3495.0,3494.7,0.43314577]
[1721545540520,0.59774984,3494.9,3494.4,0.69010519]
[1721545541353,0.59774984,3494.8,3494.4,0.69010519]